Workbook

Sheet Factory Input Fields
B1: Factory Labour Minute Value Calculator Tunisia
B2: Instructions and input fields, calculation and comparison of labour minute values
B3: https://api.fairwear.org/wp-content/uploads/2020/06/Guidance-for-Use-of-the-Fair-Wear-Labour-and-Minute-and-Product-Costing-Calculator-Final.pdf
B5: The file is filled with the mandatory wage data per grade and includes all necessary calculation formulas
B6: The yellow fields in the file are your input fields, where you should insert the actual information based on your factory
G8: Factory Name (optional)
G9: Responsible staff (optional)
B11: Step | C11: Value
B12: 1) | C12: 3.1 | D12: Insert actual TND-EUR foreign exchange rate or foreign exchange rate you are using for your calculations.
B13: workforce
B14: 4) | D14: Insert total number of production workers in the factory
B15: 5) | D15: Insert total number of sewing operators working actively in the prod. lines (i.e. # machines in the lines determine capacity minutes), which means: | H15: =IFERROR(C15/C14,0) -> 0 | I15: of the workforce.
B16: 4) | D16: Distribution of workers per Pay Grade in % Please adjust the percentages to reflect the real situation regarding the distribuion of the workforce by grade level in your factory.
B17: Must add up to 100% | D17: Grade 1 (cleaning) | E17: Grade 2 (unskilled) | F17: Grade 3 (sewing) | G17: Grade 4 (multi-skilled) | H17: Grade 5 (qualified) | I17: Grade 6 (chief position)
C18: =SUM(D18:I18) -> 1 | D18: 0.01 | E18: 0.22 | F18: 0.25 | G18: 0.19 | H18: 0.21 | I18: 0.12
B19: paid leave
C20: 12 | D20: Total number of paid public holiday days per year when the factory is closed and workers are paid.
B21: 2) | C21: 18 | D21: Insert the total number of paid annual leave per year for an average worker. As per law, workers are entitled to a 1.5 days per month which amount to 18 days for a full year worked.
C22: =SUM(C20:C21) -> 30 | D22: Total number of paid leave days taken annually per worker.
B23: overtime
B24: 3) | D24: Insert the average weekly Overtime Hours of your factory.
B25: capacity minutes
C26: =(48+C24)*4.33*60-((C22/12)*8*60)-((C22/12)*(C24/6))*60 -> 11270.4 | D26: Total capacity minutes per worker/month, based on regular (48 h/w) and overtime hours (C24) and adjusted for the total average number of paid leave taken annually per worker (C22).
C27: =C15*C26 -> 0 | D27: Total number of monthly sewing capacity minutes (48 weekly hours + average weekly OT hours x 4.33 x 60), adjusted for public holiday.
B28: paid benefits
B29: 6) | D29: Insert the total amount paid for annual one month bonus payment (13th month salary bonus) in TND per YEAR (e.g. based on last year)
B30: 7) | D30: Insert the total amount in productivity bonuses you pay in TND per MONTH. If this value is very volatile, calculate the average figure of the last 6 - 12 month based on the data available.
B31: 8) | D31: Insert the total amount in presence bonus pay in TND per MONTH. As per law, workers are entitled on TND 6.11 based on full attendance.
B32: 9) | D32: Insert the total amount of additional bonuses (if any) you paid in TND per MONTH.
B33: employer on-costs
B34: 10) | D34: Insert the total amount paid by the factory for severence pay in TND per year.
B35: 11) | D35: Insert the total amount for additional employer labour-related on-costs (if any) paid in TND per year.
B37: 13) | C37: 500 | D37: Insert the Target Wage (or new minimum wage) for grade 1, in order to compare the labour minute value based on 2019 minimum wage with the applied target wage or increased New Minimum Wage. Grades 2-6 are increased with the same %-wise as the minimum wage grading. However, different models are possible, which need to be discussed with management and worker representatives. This could then be adjusted in the coloured cells in the Worksheet 'Target Wage'. Please note that this would remove the formula.
B39: Once you have inserted all above you should get following information (see 'LMV 2019' and 'Target Wage' sheets for detailed calculation):
B41: Wage | C41: Description | E41: Labour Cost avg. worker | F41: Capacity Minutes | G41: TND Labour Minute Value | H41: US$ Labour Minute Value | I41: Difference (absolute) | J41: Difference (relative)
B42: ='LMW 2019'!D9 -> 456.2088 | C42: Labour Minute Value (based on Legal Minimum Wage) | E42: ='LMW 2019'!D31 -> 771.0336837 | F42: ='LMW 2019'!D32 -> 11270.4 | G42: =E42/F42 -> 0.06841227319 | H42: =G42/'Factory Input Fields'!C12 -> 0.02206847522
B43: =C37 -> 500 | C43: Labour Minute Value (based on Target Wage) | E43: ='Target Wage'!D31 -> 838.9315025 | F43: =F42 -> 11270.4 | G43: =E43/F43 -> 0.07443671054 | H43: =G43/C12 -> 0.02401184211 | I43: =H43-H42 -> 0.001943366889 | J43: =IFERROR((H43-H42)/H42,0) -> 0.08806076855
B45: Monthly Operational Expenses in the Factory
C46: in TND | D46: in USD | E46: per minute | F46: (operational expenses in USD divided by the total monthly sewing minutes (C16)
B47: 14) | D47: =C47/C12 -> 0 | E47: =IFERROR(D47/C27,0) -> 0 | F47: Insert the total amount paid for Direct Labour (i.e. sewing operators) per month in TND.
B48: 15) | D48: =C48/C12 -> 0 | E48: =IFERROR(D48/C27,0) -> 0 | F48: Insert the total amount paid for Indirect Labour (all other labour costs besides sewing, e.g. cutting, QC, maintainance, security, cleaning, office staff etc.) per month in TND.
C49: =SUM(C47:C48) -> 0 | D49: =D48+D47 -> 0 | E49: =IFERROR(D49/C27,0) -> 0 | F49: Total labour costs per month in TND / Labour Minute Costs (calculated by dividing with sewing capacity minutes: C16)
B50: 16) | D50: =C50/C12 -> 0 | E50: =IFERROR(D50/C27,0) -> 0 | F50: Insert the average overhead costs in the factory: rent, fuel, electricity, training, interest payments, depreciation on building, safety measures, etc. per month in TND.
B51: 17) | D51: =C51/C12 -> 0 | E51: =IFERROR(D51/C27,0) -> 0 | F51: If appliable, Insert the total additional costs per month for Covid-19 measures (e.g. face masks, desinfectants, temperature scanning, etc).
C52: =SUM(C49:C51) -> 0 | D52: =SUM(D49:D51) -> 0 | E52: =SUM(E49:E51) -> 0 | F52: Total factory expenses per month in TND / working minute costs (which can be compared with the working minute costs based on prevailing min. wage as a plausibility check).
C54: =IFERROR(C47/C49,0) -> 0 | D54: Total percentage paid for Direct Labour, i.e. sewing (based on step 14 above)
C55: =IFERROR(C48/C49,0) -> 0 | D55: Total percentage paid for Indirect Labour, i.e. all other labour costs besides sewing, e.g. cutting, QC, maintainance, security, cleaning, office staff etc. (based on step 15 above)
B57: Once you have inserted all above you should get following information:
B59: Wage grade | C59: Description | E59: Direct Labour (A) | F59: Indirect Labour (B) | G59: Factory Labour Minute Value (C) | H59: Overhead (D) | I59: Total Working Minute Cost (C+D) | J59: Increment (in%)
E60: =C54 -> 0 | F60: =C55 -> 0 | G60: A+B
B61: =B42 -> 456.2088 | C61: Factory Labour/Working Minute Value (based on Legal Minimum Wage) | E61: =H42 -> 0.02206847522 | F61: =IFERROR(G61*C55,0) -> 0 | G61: =IFERROR(E61/C54,0) -> 0 | H61: =E50+E51 -> 0 | I61: =SUM(G61:H61) -> 0
B62: =B43 -> 500 | C62: Factory Labour/Working Minute Value (based on Target Wage) | E62: =H43 -> 0.02401184211 | F62: =IFERROR(G62*C55,0) -> 0 | G62: =IFERROR(E62/C54,0) -> 0 | H62: =E50+E51 -> 0 | I62: =SUM(G62:H62) -> 0 | J62: =IFERROR((I62-I61)/I61,0) -> 0

Sheet Product Style Costing
B1: Product Style Costing Calculator - Tunisia
B2: Instructions and input fields, calculation and comparison of labour minute values
B3: https://api.fairwear.org/wp-content/uploads/2020/06/Guidance-for-Use-of-the-Fair-Wear-Labour-and-Minute-and-Product-Costing-Calculator-Final.pdf
B5: The file is filled with the mandatory wage data per grade and includes all necessary calculation formulas
B6: The yellow fields in the file are your input fields, where you should insert the actual information based on your factory
H8: Brand Name
G9: Factory Name
G10: Responsible staff (optional)
B12: Once you have inserted all above you should get following information:
B14: Wage grade | C14: Description | E14: Direct Labour (A) | F14: Indirect Labour (B) | G14: Factory Labour Minute Value (C) | H14: Overhead (D) | I14: Total Working Minute Cost (C+D) | J14: Increment (in%)
E15: ='Factory Input Fields'!$E$60 -> 0 | F15: ='Factory Input Fields'!$E$60 -> 0 | G15: A+B
B16: ='Factory Input Fields'!$B$61 -> 456.2088 | C16: Factory Labour/Working Minute Value (based on Legal Minimum Wage) | E16: ='Factory Input Fields'!E61 -> 0.02206847522 | F16: ='Factory Input Fields'!F61 -> 0 | G16: ='Factory Input Fields'!G61 -> 0 | H16: ='Factory Input Fields'!$H$61 -> 0 | I16: =SUM(G16:H16) -> 0
B17: ='Factory Input Fields'!$B$62 -> 500 | C17: Factory Labour/Working Minute Value (based on Target Wage) | E17: ='Factory Input Fields'!E62 -> 0.02401184211 | F17: ='Factory Input Fields'!F62 -> 0 | G17: ='Factory Input Fields'!G62 -> 0 | H17: ='Factory Input Fields'!$H$62 -> 0 | I17: =SUM(G17:H17) -> 0 | J17: =IFERROR((I17-I16)/I16,0) -> 0
B19: Calculating the cost for a product style
C21: Items provided by the factory | E21: Details / Calculations | G21: Notes
B22: 1) | C22: Style Name | G22: Style name or number of the Product
B23: 2) | C23: Standard Allowed Minutes | G23: Standard Allowed Minutes (sewing) of the style you want to calculate per piece.
B24: 3) | C24: Efficiency Percentage | G24: Factory or line efficiency value. Note: One could also adjust this % to calculate the impact of Covid-19 on labour (and product) costs due to possible efficiency loss.
C25: Actual number of sewing minutes for style | E25: =IFERROR(E23/E24,0) -> 0 | G25: Note: if you don't know the SAM and efficiency percentage, simply indicate the actual labour minutes under 2, and 100% efficiency under 3.
B26: 4) | C26: Fabric | G26: Fabric costs per piece (incl. wastage %) in USD
B27: 5) | C27: Accessories | G27: Costs for accessories (buttons, zippers, etc) per piece in USD
B28: 6) | C28: Polybag, packaging, labelling | G28: Total amount per piece for polybag, packaging, hangtag
C29: Total Material Costs | E29: =SUM(E26:G28) -> 0
B30: Total CM Costs | C30: Labour Cost | E30: at LMW | F30: at Target Wage | G30: Factory labour minute value x SAM / efficiency %
C31: Direct | D31: =E15 -> 0 | E31: =E25*E16 -> 0 | F31: =E25*E17 -> 0
C32: Indirect | D32: =F15 -> 0 | E32: =E25*F16 -> 0 | F32: =E25*F17 -> 0
C33: Total labour cost | E33: =SUM(E31:E32) -> 0 | F33: =SUM(F31:F32) -> 0
C34: Overhead Cost (elecricity, fuel ..) | E34: =IFERROR(E25*H16,0) -> 0 | G34: Overhead costs per minute (H16) x minutes spent on style (step 2-3).
B35: 7) | C35: Outsourced processes | G35: If applicable, amount for outsourced processes (e.g. embroidery, washing, printing) per piece in USD
B36: 8) | C36: Logistic costs (inbound-outbound) | G36: Freight cost to bring material to factory and finished goods to buyer (depending on INCOTERMS agreed) per piece in USD
B37: 9) | C37: Import tax and duties | G37: Cost for import tax and duties calculated per piece in USD
C38: Total | E38: =E29+E33+E35+E36+E34+E37 -> 0 | F38: =E29+F33+E35+E36+E34+E37 -> 0
B39: 10) | C39: Profit Margin | E39: =D39*E38 -> 0 | F39: =F38*D39 -> 0 | G39: Insert your profit margin.
B40: 11) | C40: Buying House Commission | E40: =D40*E38 -> 0 | F40: =D40*F38 -> 0 | G40: If applicable, insert the buying houses commission %
C41: FOB PRICE | E41: =SUM(E38:E40) -> 0 | F41: =SUM(F38:F40) -> 0
C42: % increase | F42: =IFERROR((F41-E41)/E41,0) -> 0
B44: 12) | D44: CHECK: insert the FOB price you receive from the buyer (in USD). | I44: Date:
B45: 13) | D45: Insert the order size (# pieces) | E45: =C45*E41 -> 0 | F45: =C45*F41 -> 0 | G45: Order Value

Sheet LMW 2019
B1: Factory Labour Minute Value calculator Tunisia - Legal Minimum Wage
B3: Exchange rate TND - EUR (change to actual) | E3: Average OT hous per week | H3: Total number of workers
B4: ='Factory Input Fields'!C12 -> 3.1 | E4: ='Factory Input Fields'!C24 -> 0 | H4: ='Factory Input Fields'!C14 -> 0
B6: Wage Item | D6: CBA Wage Grade 1 (cleaning) | F6: CBA Wage Grade 2 (unskilled) | H6: CBA Wage Grade 3 (sewing) | J6: CBA Wage Grade 4 (multi skilled) | L6: CBA Wage Grade 5 (qualified) | N6: CBA Wage Grade 6 (chief position) | P6: Explanatory Notes
D7: Regular hours (48h) | E7: Overtime hours | F7: Regular hours (48h) | G7: Overtime hours | H7: Regular hours (48h) | I7: Overtime hours | J7: Regular hours (48h) | K7: Overtime hours | L7: Regular hours (48h) | M7: Overtime hours | N7: Regular hours (48h) | O7: Overtime hours
B8: Legal Minimum Wage (Pay for time worked) | C8: Hourly Wage | D8: 2.195 | F8: 2.336 | H8: 2.712 | J8: 2.858 | L8: 2.961 | N8: 3.193
C9: Monthly Basic Wage (Gross) | D9: =D8*48*4.33 -> 456.2088 | F9: =F8*48*4.33 -> 485.51424 | H9: =H8*48*4.33 -> 563.66208 | J9: =J8*48*4.33 -> 594.00672 | L9: =L8*48*4.33 -> 615.41424 | N9: =N8*48*4.33 -> 663.63312 | P9: 48 regular work week Basic Wage Gross
C10: OT Wage | E10: =D8*E4*4.33*1.75 -> 0 | G10: =F8*E4*4.33*1.75 -> 0 | I10: =H8*E4*4.33*1.75 -> 0 | K10: =J8*E4*4.33*1.75 -> 0 | M10: =L8*E4*4.33*1.75 -> 0 | O10: =N8*E4*4.33*1.75 -> 0 | P10: Paid at 175%. 12 hours maximum of OT per week.
C11: SubTOTAL 1 | D11: =D9 -> 456.2088 | E11: =E10 -> 0 | F11: =F9 -> 485.51424 | G11: =G10 -> 0 | H11: =H9 -> 563.66208 | I11: =I10 -> 0 | J11: =J9 -> 594.00672 | K11: =K10 -> 0 | L11: =L9 -> 615.41424 | M11: =M10 -> 0 | N11: =N9 -> 663.63312 | O11: =O10 -> 0
B12: Directly Paid Benefits | C12: Annual bonus 1 month salary (13th month bonus) | D12: =IFERROR($V$12/$H$4/12,0) -> 0 | F12: =IFERROR($V$12/$H$4/12,0) -> 0 | H12: =IFERROR($V$12/$H$4/12,0) -> 0 | J12: =IFERROR($V$12/$H$4/12,0) -> 0 | L12: =IFERROR($V$12/$H$4/12,0) -> 0 | N12: =IFERROR($V$12/$H$4/12,0) -> 0 | P12: Total amount paid for Annual one month bonus payment (13th month salary bonus) in TND per year. | V12: ='Factory Input Fields'!C29 -> 0
C13: Productivity or any other factory specific bonus | D13: =IFERROR($V$13/$H$4,0) -> 0 | F13: =IFERROR($V$13/$H$4,0) -> 0 | H13: =IFERROR($V$13/$H$4,0) -> 0 | J13: =IFERROR($V$13/$H$4,0) -> 0 | L13: =IFERROR($V$13/$H$4,0) -> 0 | N13: =IFERROR($V$13/$H$4,0) -> 0 | P13: Total monthly amount paid for productivity bonuses in TND per month. | V13: ='Factory Input Fields'!C30 -> 0
C14: Presence Bonus 6.11 TND per month | D14: =IFERROR($V$14/$H$4,0) -> 0 | F14: =IFERROR($V$14/$H$4,0) -> 0 | H14: =IFERROR($V$14/$H$4,0) -> 0 | J14: =IFERROR($V$14/$H$4,0) -> 0 | L14: =IFERROR($V$14/$H$4,0) -> 0 | N14: =IFERROR($V$14/$H$4,0) -> 0 | P14: Total amount paid for presence bonuses in TND per month. | V14: ='Factory Input Fields'!C31 -> 0
C15: Transport Bonus 52.9 TND per month | D15: 52.9 | F15: 52.9 | H15: 52.9 | J15: 52.9 | L15: 52.9 | N15: 52.9 | P15: All workers are entitled to TND 52.9 per month as transport bonus. .
C16: Assiduity Bonus 10,82 TND per month | D16: 10.82 | F16: 10.82 | H16: 10.82 | J16: 10.82 | L16: 10.82 | N16: 10.82 | P16: All workers are entitled to TND 10.82 per month as assiduity bonus.
C17: Any additional Bonuses (if applicable) | D17: =IFERROR($V$17/$H$4,0) -> 0 | F17: =IFERROR($V$17/$H$4,0) -> 0 | H17: =IFERROR($V$17/$H$4,0) -> 0 | J17: =IFERROR($V$17/$H$4,0) -> 0 | L17: =IFERROR($V$17/$H$4,0) -> 0 | N17: =IFERROR($V$17/$H$4,0) -> 0 | P17: Total monthly amount paid for additional bonuses in TND per month (if applicable) | V17: ='Factory Input Fields'!C32 -> 0
C18: SubTOTAL 2 | D18: =SUM(D12:D17) -> 63.72 | F18: =SUM(F12:F17) -> 63.72 | H18: =SUM(H12:H17) -> 63.72 | J18: =SUM(J12:J17) -> 63.72 | L18: =SUM(L12:L17) -> 63.72 | N18: =SUM(N12:N17) -> 63.72
B19: Employer labour related on-cost | C19: Pay roll tax employer 20.9% Social security 16.7% Training Tax 2% Social homes 1% Work accident contribution 1.2% | D19: =(D11+D18)*20.9% -> 108.6651192 | E19: 0 | F19: 114.7899562 | G19: 0 | H19: 131.1228547 | I19: 0 | J19: 137.4648845 | K19: 0 | L19: 141.9390562 | M19: 0 | N19: 152.0168021 | O19: 0
C20: Severence Pay | D20: =IFERROR($V$20/$H$4/12,0) -> 0 | F20: =IFERROR($V$20/$H$4/12,0) -> 0 | H20: =IFERROR($V$20/$H$4/12,0) -> 0 | J20: =IFERROR($V$20/$H$4/12,0) -> 0 | L20: =IFERROR($V$20/$H$4/12,0) -> 0 | N20: =IFERROR($V$20/$H$4/12,0) -> 0 | P20: Total amount paid per year for severence pay in TND per YEAR. | V20: ='Factory Input Fields'!C34 -> 0
C21: Any additional employer labour-related on-costs | D21: =IFERROR($V$21/$H$4/12,0) -> 0 | F21: =IFERROR($V$21/$H$4/12,0) -> 0 | H21: =IFERROR($V$21/$H$4/12,0) -> 0 | J21: =IFERROR($V$21/$H$4/12,0) -> 0 | L21: =IFERROR($V$21/$H$4/12,0) -> 0 | N21: =IFERROR($V$21/$H$4/12,0) -> 0 | P21: Total amount paid per year for additional employer labour-related on-costs in TND per YEAR. | V21: ='Factory Input Fields'!C35 -> 0
C22: SubTOTAL 3 | D22: =SUM(D19:D21) -> 108.6651192 | E22: =SUM(E19:E21) -> 0 | F22: 114.7899562 | G22: 0 | H22: 131.1228547 | I22: 0 | J22: 137.4648845 | K22: 0 | L22: 141.9390562 | M22: 0 | N22: 152.0168021 | O22: 0
B23: TOTAL Labour cost per worker in TND | D23: =D22+D18+D11 -> 628.5939192 | E23: 0 | F23: 664.0241962 | G23: 0 | H23: 758.5049347 | I23: 0 | J23: 795.1916045 | K23: 0 | L23: 821.0732962 | M23: 0 | N23: 879.3699221 | O23: 0
B24: Monthly capacity minutes | D24: =48*4.33*60-(('Factory Input Fields'!C22/12)*8*60) -> 11270.4 | E24: =$E$4*4.33*60-('Factory Input Fields'!C22/12*'Factory Input Fields'!C24/6)*60 -> 0 | F24: =D24 -> 11270.4 | G24: =E24 -> 0 | H24: =D24 -> 11270.4 | I24: =E24 -> 0 | J24: =D24 -> 11270.4 | K24: =E24 -> 0 | L24: =D24 -> 11270.4 | M24: =E24 -> 0 | N24: =D24 -> 11270.4 | O24: =E24 -> 0 | P24: Regular working time: 48h/week x 4.33 x 60min MINUS public leave. Overtime: Actual OT/week x 4.33 x 60min MINUS public leave.
B25: Labour Minute Value TND | D25: =D23/D24 -> 0.05577387841 | E25: =IFERROR(E23/E24,0) -> 0 | F25: =F23/F24 -> 0.05891753586 | G25: =IFERROR(G23/G24,0) -> 0 | H25: 0.0673006224 | I25: =IFERROR(I23/I24,0) -> 0 | J25: 0.07055575707 | K25: =IFERROR(K23/K24,0) -> 0 | L25: 0.07285218769 | M25: =IFERROR(M23/M24,0) -> 0 | N25: 0.07802473045 | O25: =IFERROR(O23/O24,0) -> 0
B26: Monthly Labour Cost in TND incl OT | D26: =D23+E23 -> 628.5939192 | F26: =F23+G23 -> 664.0241962 | H26: =H23+I23 -> 758.5049347 | J26: =J23+K23 -> 795.1916045 | L26: =L23+M23 -> 821.0732962 | N26: =N23+O23 -> 879.3699221
B27: Monthly capacity minutes incl. OT | D27: =D24+E24 -> 11270.4 | F27: =F24+G24 -> 11270.4 | H27: =H24+I24 -> 11270.4 | J27: =J24+K24 -> 11270.4 | L27: =L24+M24 -> 11270.4 | N27: =N24+O24 -> 11270.4
B28: Labour minute Value TND incl. OT | D28: =D26/D27 -> 0.05577387841 | F28: =F26/F27 -> 0.05891753586 | H28: =H26/H27 -> 0.0673006224 | J28: =J26/J27 -> 0.07055575707 | L28: =L26/L27 -> 0.07285218769 | N28: =N26/N27 -> 0.07802473045
B29: Distribution per pay grade in % | D29: ='Factory Input Fields'!D18 -> 0.01 | F29: ='Factory Input Fields'!E18 -> 0.22 | H29: ='Factory Input Fields'!F18 -> 0.25 | J29: ='Factory Input Fields'!G18 -> 0.19 | L29: ='Factory Input Fields'!H18 -> 0.21 | N29: ='Factory Input Fields'!I18 -> 0.12 | P29: =SUM(D29:O29) -> 1 | Q29: Must add up to 100%
B31: Weighted Labour Cost p/worker (based on Legal Minimum Wage) in TND | D31: =D26*D29+F26*F29+H26*H29+J26*J29+L26*L29+N26*N29 -> 771.0336837
B32: Total Capacity Minutes | D32: =D27 -> 11270.4
B33: Weighted Labour Minute Value INR (based on Legal Minimum Wage) | D33: =D31/D32 -> 0.06841227319
B34: Weighted Labour Minute Value US$ (based on Legal Minimum Wage) | D34: =D33/B4 -> 0.02206847522

Sheet Target Wage
B1: Factory Labour Minute Value Calculator Tunisia - Target Wage
B3: Exchange rate TND - EUR (change to actual) | E3: Average OT hous per week | H3: Total number of workers | N3: Target Wage Grade 1 | P3: Note: Grades 2-6 are increased with the same nominal increase as for grade 1. However, different models are possible, which need to be discussed with management and worker representatives. This could then be adjusted in the coloured cells. Please note that this would remove the formula.
B4: ='Factory Input Fields'!C12 -> 3.1 | E4: ='Factory Input Fields'!C24 -> 0 | H4: ='Factory Input Fields'!C14 -> 0 | N4: ='Factory Input Fields'!C37 -> 500
B6: Wage Item | D6: CBA Wage Grade 1 (cleaning) | F6: CBA Wage Grade 2 (unskilled) | H6: CBA Wage Grade 3 (sewing) | J6: CBA Wage Grade 4 (multi skilled) | L6: CBA Wage Grade 5 (qualified) | N6: CBA Wage Grade 6 (chief position) | P6: Explanatory Notes
D7: Regular hours (48h) | E7: Overtime hours | F7: Regular hours (48h) | G7: Overtime hours | H7: Regular hours (48h) | I7: Overtime hours | J7: Regular hours (48h) | K7: Overtime hours | L7: Regular hours (48h) | M7: Overtime hours | N7: Regular hours (48h) | O7: Overtime hours
B8: Legal Minimum Wage (Pay for time worked) | C8: Hourly Wage | D8: =N4/4.33/48 -> 2.40569669 | F8: =D8/0.939 -> 2.561977305 | H8: =F8/0.861 -> 2.975583398 | J8: =H8/0.948 -> 3.138801052 | L8: =J8/0.965 -> 3.252643578 | N8: =L8/0.927 -> 3.508784873
C9: Monthly Basic Wage (Gross) | D9: =D8*48*4.33 -> 500 | F9: =F8*48*4.33 -> 532.4813632 | H9: =H8*48*4.33 -> 618.4452534 | J9: =J8*48*4.33 -> 652.3684107 | L9: =L8*48*4.33 -> 676.0294412 | N9: =N8*48*4.33 -> 729.2658481 | P9: 48 regular work week Basic Wage Gross
C10: OT Wage | E10: =D8*E4*4.33*1.75 -> 0 | G10: =F8*E4*4.33*1.75 -> 0 | I10: =H8*E4*4.33*1.75 -> 0 | K10: =J8*E4*4.33*1.75 -> 0 | M10: =L8*E4*4.33*1.75 -> 0 | O10: =N8*E4*4.33*1.75 -> 0 | P10: 12h maximum of OT per week @175%
C11: SubTOTAL 1 | D11: =D9 -> 500 | E11: =E10 -> 0 | F11: =F9 -> 532.4813632 | G11: =G10 -> 0 | H11: =H9 -> 618.4452534 | I11: =I10 -> 0 | J11: =J9 -> 652.3684107 | K11: =K10 -> 0 | L11: =L9 -> 676.0294412 | M11: =M10 -> 0 | N11: =N9 -> 729.2658481 | O11: =O10 -> 0
B12: Directly Paid Benefits | C12: Annual bonus 1 month salary (13th month bonus) | D12: =IFERROR($V$12/$H$4/12,0) -> 0 | F12: =IFERROR($V$12/$H$4/12,0) -> 0 | H12: =IFERROR($V$12/$H$4/12,0) -> 0 | J12: =IFERROR($V$12/$H$4/12,0) -> 0 | L12: =IFERROR($V$12/$H$4/12,0) -> 0 | N12: =IFERROR($V$12/$H$4/12,0) -> 0 | P12: Total amount paid for Annual one month bonus payment (13th month salary bonus) in TND per year. | V12: ='Factory Input Fields'!C29 -> 0
C13: Productivity or any other factory specific bonus | D13: =IFERROR($V$13/$H$4,0) -> 0 | F13: =IFERROR($V$13/$H$4,0) -> 0 | H13: =IFERROR($V$13/$H$4,0) -> 0 | J13: =IFERROR($V$13/$H$4,0) -> 0 | L13: =IFERROR($V$13/$H$4,0) -> 0 | N13: =IFERROR($V$13/$H$4,0) -> 0 | P13: Total monthly amount paid for productivity bonuses in TND per month. | V13: ='Factory Input Fields'!C30 -> 0
C14: Presence Bonus 6.11 TND per month | D14: =IFERROR($V$14/$H$4,0) -> 0 | F14: =IFERROR($V$14/$H$4,0) -> 0 | H14: =IFERROR($V$14/$H$4,0) -> 0 | J14: =IFERROR($V$14/$H$4,0) -> 0 | L14: =IFERROR($V$14/$H$4,0) -> 0 | N14: =IFERROR($V$14/$H$4,0) -> 0 | P14: Total amount paid for presence bonuses in TND per month. | V14: ='Factory Input Fields'!C31 -> 0
C15: Transport Bonus 52.9 TND per month | D15: 52.9 | F15: 52.9 | H15: 52.9 | J15: 52.9 | L15: 52.9 | N15: 52.9 | P15: All workers are entitled to TND 52.9 per month as transport bonus. .
C16: Assiduity Bonus 10,82 TND per month | D16: 10.82 | F16: 10.82 | H16: 10.82 | J16: 10.82 | L16: 10.82 | N16: 10.82 | P16: All workers are entitled to TND 10.82 per month as assiduity bonus.
C17: Any additional Bonuses (if applicable) | D17: =IFERROR($V$17/$H$4,0) -> 0 | F17: =IFERROR($V$17/$H$4,0) -> 0 | H17: =IFERROR($V$17/$H$4,0) -> 0 | J17: =IFERROR($V$17/$H$4,0) -> 0 | L17: =IFERROR($V$17/$H$4,0) -> 0 | N17: =IFERROR($V$17/$H$4,0) -> 0 | P17: Total monthly amount paid for additional bonuses in TND per month (if applicable) | V17: ='Factory Input Fields'!C32 -> 0
C18: SubTOTAL 2 | D18: =SUM(D12:D17) -> 63.72 | F18: =SUM(F12:F17) -> 63.72 | H18: =SUM(H12:H17) -> 63.72 | J18: =SUM(J12:J17) -> 63.72 | L18: =SUM(L12:L17) -> 63.72 | N18: =SUM(N12:N17) -> 63.72
B19: Employer labour related on-cost | C19: Pay roll tax employer 20.9% Social security 16.7% Training Tax 2% Social homes 1% Work accident contribution 1.2% | D19: =(D11+D18)*20.9% -> 117.81748 | E19: 0 | F19: 124.6060849 | G19: 0 | H19: 142.572538 | I19: 0 | J19: 149.6624778 | K19: 0 | L19: 154.6076332 | M19: 0 | N19: 165.7340422 | O19: 0
C20: Severence Pay | D20: =IFERROR($V$20/$H$4/12,0) -> 0 | F20: =IFERROR($V$20/$H$4/12,0) -> 0 | H20: =IFERROR($V$20/$H$4/12,0) -> 0 | J20: =IFERROR($V$20/$H$4/12,0) -> 0 | L20: =IFERROR($V$20/$H$4/12,0) -> 0 | N20: =IFERROR($V$20/$H$4/12,0) -> 0 | P20: Total amount paid per year for severence pay in TND per YEAR. | V20: ='Factory Input Fields'!C34 -> 0
C21: Any additional employer labour-related on-costs | D21: =IFERROR($V$21/$H$4/12,0) -> 0 | F21: =IFERROR($V$21/$H$4/12,0) -> 0 | H21: =IFERROR($V$21/$H$4/12,0) -> 0 | J21: =IFERROR($V$21/$H$4/12,0) -> 0 | L21: =IFERROR($V$21/$H$4/12,0) -> 0 | N21: =IFERROR($V$21/$H$4/12,0) -> 0 | P21: Total amount paid per year for additional employer labour-related on-costs in TND per YEAR. | V21: ='Factory Input Fields'!C35 -> 0
C22: SubTOTAL 3 | D22: =SUM(D19:D21) -> 117.81748 | E22: =SUM(E19:E21) -> 0 | F22: 124.6060849 | G22: 0 | H22: 142.572538 | I22: 0 | J22: 149.6624778 | K22: 0 | L22: 154.6076332 | M22: 0 | N22: 165.7340422 | O22: 0
B23: TOTAL Labour cost per worker in TND | D23: =D22+D18+D11 -> 681.53748 | E23: 0 | F23: 720.8074481 | G23: 0 | H23: 824.7377913 | I23: 0 | J23: 865.7508886 | K23: 0 | L23: 894.3570744 | M23: 0 | N23: 958.7198903 | O23: 0
B24: Monthly capacity minutes | D24: =48*4.33*60-(('Factory Input Fields'!C22/12)*8*60) -> 11270.4 | E24: =$E$4*4.33*60-('Factory Input Fields'!C22/12*'Factory Input Fields'!C24/6)*60 -> 0 | F24: =D24 -> 11270.4 | G24: =E24 -> 0 | H24: =D24 -> 11270.4 | I24: =E24 -> 0 | J24: =D24 -> 11270.4 | K24: =E24 -> 0 | L24: =D24 -> 11270.4 | M24: =E24 -> 0 | N24: =D24 -> 11270.4 | O24: =E24 -> 0 | P24: Regular working time: 48h/week x 4.33 x 60min MINUS public leave. Overtime: Actual OT/week x 4.33 x 60min MINUS public leave.
B25: Labour Minute Value TND | D25: =D23/D24 -> 0.06047145443 | E25: =IFERROR(E23/E24,0) -> 0 | F25: =F23/F24 -> 0.06395579998 | G25: =IFERROR(G23/G24,0) -> 0 | H25: 0.073177331 | I25: =IFERROR(I23/I24,0) -> 0 | J25: 0.07681634091 | K25: =IFERROR(K23/K24,0) -> 0 | L25: 0.07935451043 | M25: =IFERROR(M23/M24,0) -> 0 | N25: 0.08506529407 | O25: =IFERROR(O23/O24,0) -> 0
B26: Monthly Labour Cost incl. in TND incl OT | D26: =D23+E23 -> 681.53748 | F26: =F23+G23 -> 720.8074481 | H26: =H23+I23 -> 824.7377913 | J26: =J23+K23 -> 865.7508886 | L26: =L23+M23 -> 894.3570744 | N26: =N23+O23 -> 958.7198903
B27: Monthly capacity minutes incl. OT | D27: =D24+E24 -> 11270.4 | F27: =F24+G24 -> 11270.4 | H27: =H24+I24 -> 11270.4 | J27: =J24+K24 -> 11270.4 | L27: =L24+M24 -> 11270.4 | N27: =N24+O24 -> 11270.4
B28: Labour minute Value TND incl. OT | D28: =D26/D27 -> 0.06047145443 | F28: =F26/F27 -> 0.06395579998 | H28: =H26/H27 -> 0.073177331 | J28: =J26/J27 -> 0.07681634091 | L28: =L26/L27 -> 0.07935451043 | N28: =N26/N27 -> 0.08506529407
B29: Distribution per pay grade in % | D29: ='Factory Input Fields'!D18 -> 0.01 | F29: ='Factory Input Fields'!E18 -> 0.22 | H29: ='Factory Input Fields'!F18 -> 0.25 | J29: ='Factory Input Fields'!G18 -> 0.19 | L29: ='Factory Input Fields'!H18 -> 0.21 | N29: ='Factory Input Fields'!I18 -> 0.12 | P29: =SUM(D29:O29) -> 1 | Q29: Must add up to 100%
B31: Weighted Labour Cost p/worker (based on Legal Minimum Wage) in TND | D31: =D26*D29+F26*F29+H26*H29+J26*J29+L26*L29+N26*N29 -> 838.9315025
B32: Total Capacity Minutes | D32: =D27 -> 11270.4
B33: Weighted Labour Minute Value INR (based on Legal Minimum Wage) | D33: =D31/D32 -> 0.07443671054
B34: Weighted Labour Minute Value US$ (based on Legal Minimum Wage) | D34: =D33/B4 -> 0.02401184211
